bitfinex/quotes_BTCUSD_20260104
["timestamp","ask_amount","ask_price","bid_price","bid_amount"]
[1767528017502,0.01095938,91246.0,91242.0,0.01095986]
[1767528017702,0.01095938,91246.0,91241.0,0.06575975]
[1767528017703,0.06575651,91246.0,91241.0,0.01095998]
[1767528018016,0.01095938,91246.0,91241.0,0.01095998]
[1767528018421,0.01095914,91248.0,91243.0,0.01095974]
[1767528018561,0.01095914,91248.0,91246.0,0.000999]
[1767528018913,0.02196,91249.0,91247.0,0.05479625]
[1767528019337,0.06575218,91253.0,91248.0,0.01095914]
[1767528019545,0.02196,91252.0,91248.0,0.01095914]
[1767528020098,0.03291866,91252.0,91247.0,0.06575551]
[1767528020662,0.03291866,91252.0,91248.0,0.01095914]
[1767528021462,0.02196,91252.0,91249.0,0.01095902]
[1767528022431,0.02196,91252.0,91249.0,0.06575413]
[1767528024496,0.02196,91252.0,91249.0,0.01095902]
[1767528025257,0.02196,91252.0,91245.0,0.19853773]
[1767528025454,0.020961,91252.0,91249.0,0.01095902]
[1767528025655,0.020961,91252.0,91250.0,0.05479428]
[1767528027974,0.000999,91250.0,91249.0,0.01095902]
[1767528028121,0.000999,91250.0,91248.0,0.01095914]
[1767528028324,0.01,91248.0,91245.0,0.06575647]
[1767528028681,0.06575323,91251.0,91246.0,0.06575629]
[1767528028857,0.01095878,91251.0,91242.0,0.01095986]
[1767528029018,0.01095878,91251.0,91243.0,0.05479821]
[1767528029019,0.05479518,91249.0,91243.0,0.05479821]
[1767528029218,0.01095902,91249.0,91245.0,0.0109595]
[1767528029450,0.01095902,91249.0,91244.0,0.01095962]
[1767528029656,0.01095902,91249.0,91243.0,0.06575795]
[1767528029848,0.01095902,91249.0,91244.0,0.01095962]
[1767528030113,0.01095902,91249.0,91244.0,0.06575766]
[1767528030303,0.06575434,91249.0,91244.0,0.06575766]
[1767528030507,0.06575503,91248.0,91243.0,0.06575795]
[1767528031113,0.01095914,91248.0,91244.0,0.01095962]
[1767528031313,0.06575434,91249.0,91245.0,0.0109595]
[1767528031583,0.06575434,91249.0,91244.0,0.06575747]
[1767528032364,0.01095902,91249.0,91244.0,0.06575747]
[1767528032661,0.01095914,91248.0,91243.0,0.06575795]
[1767528033066,0.06575486,91248.0,91244.0,0.01095962]
[1767528033286,0.01095902,91249.0,91245.0,0.0109595]
[1767528033568,0.06575419,91249.0,91244.0,0.01095962]
[1767528033781,0.06419052,91249.0,91244.0,0.01095962]
[1767528034111,0.0657535,91250.0,91245.0,0.06575696]
[1767528034445,0.0109589,91250.0,91246.0,0.01095938]
[1767528035270,0.0657536,91250.0,91245.0,0.06575696]
[1767528035677,0.06575416,91249.0,91245.0,0.0109595]
[1767528035896,0.06575416,91249.0,91244.0,0.06575656]
[1767528036237,0.01095914,91248.0,91244.0,0.06575656]
[1767528036521,0.06575416,91249.0,91244.0,0.06575656]
[1767528036724,0.05480019,91241.0,91236.0,0.06576341]
[1767528036841,0.0109601,91240.0,91236.0,0.04881563]
[1767528037043,0.01096022,91239.0,91236.0,0.04881563]
[1767528037484,0.06576183,91239.0,91236.0,0.04881563]
[1767528037707,0.01096022,91239.0,91236.0,0.04881563]
[1767528038323,0.06575931,91242.0,91239.0,0.000999]
[1767528038743,0.06575931,91242.0,91237.0,0.06576262]
[1767528038896,0.01095998,91241.0,91237.0,0.01096046]
[1767528039104,0.01095998,91241.0,91237.0,0.11457841]
[1767528039282,0.01095998,91241.0,91237.0,0.06576278]
[1767528040413,0.05480284,91237.0,91232.0,0.04881563]
[1767528040615,0.05480284,91237.0,91230.0,0.0109613]
[1767528040616,0.01096046,91237.0,91234.0,0.04881563]
[1767528040834,0.06576134,91239.0,91234.0,0.04881563]
[1767528041442,0.06576336,91237.0,91234.0,0.04781663]
[1767528042790,0.05480479,91233.0,91228.0,0.06576875]
[1767528042944,0.00898197,91232.0,91229.0,0.04881563]
[1767528043143,0.06543904,91233.0,91229.0,0.04881563]
[1767528043390,0.01096106,91232.0,91229.0,0.04881563]
[1767528044789,0.06576643,91232.0,91229.0,0.04881563]
[1767528045687,0.05480593,91231.0,91229.0,0.04881563]
[1767528045963,0.05480603,91231.0,91229.0,0.04881563]
[1767528046568,0.05480603,91231.0,91229.0,0.04781663]
[1767528046764,0.05480653,91230.0,91229.0,0.04781663]
[1767528047180,0.06576643,91232.0,91230.0,0.04981463]
[1767528047377,0.05480593,91231.0,91230.0,0.04990184]
[1767528047612,0.05480593,91231.0,91230.0,0.04890284]
[1767528047811,0.06576643,91232.0,91230.0,0.04890284]
[1767528048312,0.05480593,91231.0,91230.0,0.04890284]
[1767528048473,0.05480593,91231.0,91230.0,0.03890284]
[1767528049333,0.05480593,91231.0,91230.0,8.721e-05]
[1767528049476,0.05480953,91225.0,91224.0,0.000152]
[1767528049680,0.05480893,91226.0,91225.0,0.000999]
[1767528049880,0.05480893,91226.0,91224.0,0.000152]
[1767528050300,0.02196,91229.0,91226.0,0.01]
[1767528050501,0.03292142,91229.0,91226.0,0.01]
[1767528050701,0.020961,91229.0,91226.0,0.01]
[1767528050939,0.020961,91229.0,91226.0,0.02096178]
[1767528051327,0.020961,91229.0,91226.0,0.07577058]
[1767528051636,0.02087269,91229.0,91226.0,0.07577058]
[1767528052446,0.03183411,91229.0,91226.0,0.01]
[1767528053440,0.03183411,91229.0,91224.0,0.01111402]
[1767528053643,0.01096154,91228.0,91224.0,0.06592414]
[1767528054476,0.08664169,91229.0,91224.0,0.06592414]
[1767528054614,0.08664169,91229.0,91224.0,0.05992965]
[1767528055303,0.08664169,91229.0,91225.0,0.04881563]
[1767528056462,0.05480893,91226.0,91225.0,0.04781663]
[1767528056875,0.0109619,91225.0,91218.0,0.11459103]
[1767528057061,0.0657727,91224.0,91219.0,0.01096262]
[1767528057413,0.0657727,91224.0,91220.0,0.05977813]
[1767528057587,0.0657727,91224.0,91220.0,0.04881563]
[1767528058109,0.01096214,91223.0,91220.0,0.04881563]
[1767528058328,0.00996314,91223.0,91220.0,0.04881563]
[1767528059426,0.06477419,91223.0,91220.0,0.04881563]
[1767528059650,0.05481153,91222.0,91220.0,0.04881563]
[1767528059785,0.05481194,91221.0,91220.0,0.04881563]
[1767528060128,0.02196,91222.0,91221.0,0.05881563]
[1767528060428,0.02196,91222.0,91221.0,0.04881563]
[1767528060629,0.07677133,91222.0,91221.0,0.04881563]
[1767528060836,0.02196,91222.0,91221.0,0.04881563]
[1767528062043,0.02196,91222.0,91221.0,0.04781663]
[1767528062605,0.03292226,91222.0,91219.0,0.04566443]
[1767528063009,0.02196,91222.0,91219.0,0.11144017]
[1767528063203,0.02196,91222.0,91219.0,0.05662705]
[1767528063615,0.02196,91222.0,91219.0,0.04566443]
[1767528063814,0.08773365,91222.0,91219.0,0.04566443]
[1767528064028,0.05481195,91221.0,91219.0,0.04566443]
[1767528064368,0.08773382,91222.0,91219.0,0.04566443]
[1767528064951,0.08764551,91222.0,91219.0,0.04566443]
[1767528065557,0.03283395,91222.0,91219.0,0.04566443]
[1767528065757,0.02187169,91222.0,91219.0,0.11144008]
[1767528066537,0.02187169,91222.0,91218.0,0.01096274]
[1767528067128,0.02178337,91222.0,91219.0,0.01096262]
[1767528067353,0.02069605,91222.0,91220.0,0.05481203]
[1767528067734,0.02069605,91222.0,91219.0,0.0657756]
[1767528068221,0.000999,91219.0,91217.0,0.11144147]
[1767528068428,0.00095379,91219.0,91218.0,0.05481374]
[1767528068646,0.02069605,91222.0,91219.0,0.06577568]
[1767528069496,0.02069605,91222.0,91219.0,0.01096262]
[1767528069656,0.02069605,91222.0,91218.0,0.06577648]
[1767528069854,0.02069605,91222.0,91219.0,0.06577568]
[1767528070236,0.01096082,91234.0,91226.0,0.01096178]
[1767528070519,0.05480699,91230.0,91224.0,0.05480968]
[1767528071091,0.0548076,91229.0,91224.0,0.05480968]
[1767528071302,0.04691955,91228.0,91225.0,0.0109619]
[1767528071476,0.06576902,91229.0,91224.0,0.01096202]
[1767528071678,0.06576902,91229.0,91225.0,0.0109619]
[1767528071876,0.01096154,91228.0,91224.0,0.01096202]
[1767528072114,0.06576941,91228.0,91224.0,0.06577206]
[1767528072264,0.05788097,91229.0,91225.0,0.06577126]
[1767528072458,0.11268821,91229.0,91225.0,0.0109619]
[1767528073239,0.11268821,91229.0,91224.0,0.06577206]
[1767528073939,0.06576953,91228.0,91223.0,0.06577284]
[1767528074523,0.06576953,91228.0,91223.0,0.11143727]
[1767528076058,0.06565991,91228.0,91223.0,0.11143727]
[1767528076927,0.06576999,91227.0,91223.0,0.05662657]
[1767528077127,0.02196,91226.0,91223.0,0.05662657]
[1767528077802,0.03292178,91226.0,91223.0,0.04566443]
[1767528077984,0.0877309,91226.0,91223.0,0.04566443]
[1767528078746,0.02196,91226.0,91223.0,0.11143721]
[1767528079033,0.02187165,91226.0,91223.0,0.04566443]
[1767528079660,0.03283343,91226.0,91221.0,0.04566443]
[1767528079769,0.05481078,91223.0,91221.0,0.04566443]
[1767528080629,0.01096226,91222.0,91217.0,0.06577709]
[1767528080815,0.01096214,91223.0,91222.0,0.000999]
[1767528081010,0.01096202,91224.0,91222.0,0.000999]
[1767528081233,0.06577197,91225.0,91222.0,0.000999]
[1767528081434,0.06577197,91225.0,91221.0,0.01096238]
[1767528082337,0.06577197,91225.0,91220.0,0.11143938]
[1767528083040,0.08764254,91226.0,91221.0,0.11143871]
[1767528083451,0.03283343,91226.0,91222.0,0.01096226]
[1767528083767,0.03283343,91226.0,91222.0,0.06577356]
[1767528084682,0.02187165,91226.0,91223.0,0.06577268]
[1767528084999,0.02087265,91226.0,91223.0,0.11143711]
[1767528085219,0.02087265,91226.0,91223.0,0.06577268]
[1767528085428,0.02078429,91226.0,91223.0,0.06577268]
[1767528086798,0.01096094,91233.0,91230.0,0.04566443]
[1767528087008,0.06576262,91238.0,91231.0,0.06576658]
[1767528087206,0.05480364,91235.0,91230.0,0.06576772]
[1767528087410,0.065765,91234.0,91229.0,0.06576796]
[1767528087613,0.01096094,91233.0,91229.0,0.06576796]
[1767528087788,0.01096082,91234.0,91230.0,0.0109613]
[1767528087990,0.0109607,91235.0,91230.0,0.06576757]
[1767528088189,0.06576426,91235.0,91230.0,0.06576757]
[1767528088385,0.06576426,91235.0,91230.0,0.0657678]
[1767528089073,0.087725,91234.0,91230.0,0.0109613]
[1767528089294,0.000999,91230.0,91228.0,0.01096154]
[1767528089723,0.0657658,91233.0,91229.0,0.01096142]
[1767528089926,0.0657658,91233.0,91229.0,0.06576847]
[1767528090134,0.0657658,91233.0,91229.0,0.01096142]
[1767528090945,0.02196,91232.0,91229.0,0.01096142]
[1767528091153,0.02196,91232.0,91228.0,0.06576882]
[1767528091541,0.02196,91232.0,91229.0,0.01096142]
[1767528091715,0.02196,91232.0,91228.0,0.06576882]
[1767528091869,0.02196,91232.0,91229.0,0.06576852]
[1767528092239,0.02187164,91232.0,91229.0,0.01096142]
[1767528092408,0.02187164,91232.0,91229.0,0.0657685]
[1767528092811,0.02187164,91232.0,91229.0,0.0657233]
[1767528095640,0.02187164,91232.0,91225.0,0.0109619]
[1767528096215,0.02187164,91232.0,91229.0,0.01096142]
[1767528096383,0.02187164,91232.0,91228.0,0.06576917]
[1767528098413,0.02187164,91232.0,91229.0,0.06576834]
[1767528099113,0.02187164,91232.0,91230.0,0.05480645]
[1767528099914,0.02187164,91232.0,91230.0,0.05469202]
[1767528100132,0.02187164,91232.0,91230.0,0.0548064]
[1767528100726,0.02187164,91232.0,91230.0,0.05476119]
[1767528101151,0.06576263,91238.0,91232.0,0.000999]
[1767528101352,0.0877229,91237.0,91232.0,0.07676517]
[1767528101551,0.0877229,91237.0,91232.0,0.07676493]
[1767528101782,0.0877229,91237.0,91232.0,0.07576593]
[1767528101988,0.0877229,91237.0,91233.0,0.06576549]
[1767528102366,0.01096058,91236.0,91232.0,0.07576593]
[1767528102686,0.0877229,91237.0,91232.0,0.06576593]
[1767528102891,0.0877229,91237.0,91233.0,0.06576558]
[1767528103101,0.03292046,91237.0,91233.0,0.06576558]
[1767528103471,0.08772283,91237.0,91233.0,0.06576558]
[1767528103680,0.08772283,91237.0,91233.0,0.06572038]
[1767528103893,0.08772283,91237.0,91233.0,0.01096094]
[1767528104069,0.03292046,91237.0,91233.0,0.06576556]
[1767528104432,0.0109589,91250.0,91244.0,0.01095962]
[1767528104635,0.02196,91249.0,91245.0,0.0109595]
[1767528104774,0.02196,91249.0,91247.0,0.06575548]
[1767528104972,0.020961,91249.0,91246.0,0.01095938]
[1767528105395,0.02196,91249.0,91248.0,0.01095914]
[1767528105715,0.01196,91249.0,91248.0,0.06575428]
[1767528106494,0.01187164,91249.0,91248.0,0.06575428]
[1767528106929,0.00289357,91249.0,91248.0,0.06575428]
[1767528107106,0.00041118,91249.0,91248.0,0.06575428]
[1767528107533,0.0657417,91267.0,91260.0,0.0109577]
[1767528107851,0.0109571,91265.0,91261.0,0.00995858]
[1767528108057,0.06574189,91266.0,91261.0,0.0582838]
[1767528108208,0.0109571,91265.0,91260.0,0.06574564]
[1767528108413,0.01095698,91266.0,91260.0,0.06574564]
[1767528108414,0.06574189,91266.0,91261.0,0.0657454]
[1767528108639,0.0109571,91265.0,91261.0,0.01095758]
[1767528108843,0.01095698,91266.0,91261.0,0.06574541]
[1767528109239,0.00866784,91267.0,91263.0,0.01095734]
[1767528109445,0.00866784,91267.0,91262.0,0.05478701]
[1767528109446,0.05877791,91266.0,91262.0,0.01095746]
[1767528110322,0.04782093,91266.0,91263.0,0.01095734]
[1767528110501,0.02196,91268.0,91266.0,0.01195598]
[1767528110732,0.06573742,91273.0,91268.0,0.01095674]
[1767528110927,0.06573742,91273.0,91267.0,0.06574077]
[1767528110928,0.01095638,91271.0,91267.0,0.06574077]
[1767528111131,0.06573834,91271.0,91266.0,0.06574186]
[1767528111553,0.05478311,91269.0,91262.0,0.05928268]
[1767528111781,0.01,91266.0,91262.0,0.11406998]
[1767528112285,0.02095698,91266.0,91262.0,0.01095746]
[1767528112582,0.0109571,91265.0,91260.0,0.11407132]
[1767528112766,0.0109571,91265.0,91261.0,0.01095758]
[1767528112960,0.0109571,91265.0,91260.0,0.11407132]
[1767528113178,0.0109571,91265.0,91261.0,0.0592376]
[1767528113379,0.0109571,91265.0,91261.0,0.05553967]
[1767528113722,0.01095698,91266.0,91262.0,0.00730185]
[1767528113862,0.01095686,91267.0,91263.0,0.01095734]
[1767528114070,0.01095698,91266.0,91262.0,0.00730185]
[1767528114798,0.01095698,91266.0,91261.0,0.11032723]
[1767528114944,0.0109571,91265.0,91261.0,0.04832522]
[1767528115366,0.06574279,91265.0,91261.0,0.04832522]
[1767528115548,0.0109571,91265.0,91261.0,0.04832522]
[1767528115784,0.06574345,91264.0,91261.0,0.04832522]
[1767528115992,0.0109577,91260.0,91257.0,0.02196]
[1767528116188,0.01,91261.0,91257.0,0.02196]
[1767528116423,0.0109577,91260.0,91257.0,0.02196]
[1767528116648,0.01095794,91258.0,91253.0,0.01095854]
[1767528116850,0.01095794,91258.0,91253.0,0.06575068]
[1767528117056,0.01095794,91258.0,91252.0,0.06575141]
[1767528117057,0.06574766,91258.0,91252.0,0.06575141]
[1767528117284,0.06574766,91258.0,91254.0,0.01095842]
[1767528117493,0.0109577,91260.0,91255.0,0.0109583]
[1767528117716,0.06574498,91262.0,91257.0,0.01095806]
[1767528118820,0.04782093,91264.0,91248.0,0.2191823]
[1767528119039,0.05877959,91252.0,91239.0,0.02196]
[1767528119250,0.01095878,91251.0,91247.0,0.01095926]
[1767528119484,0.0109589,91250.0,91247.0,0.04832522]
[1767528119693,0.0547957,91249.0,91247.0,0.04832522]
[1767528120129,0.05479925,91243.0,91240.0,0.04832522]
[1767528120566,0.05479933,91242.0,91240.0,0.04832522]
[1767528120820,0.05480052,91240.0,91239.0,4.753e-05]
[1767528121237,0.05479992,91241.0,91239.0,4.753e-05]
[1767528121600,0.06576037,91242.0,91239.0,4.753e-05]
[1767528122015,0.01095974,91243.0,91239.0,4.753e-05]
[1767528122217,0.01095974,91243.0,91239.0,0.01100775]
[1767528122417,0.06575945,91244.0,91239.0,0.06580885]
[1767528122627,0.01095974,91243.0,91239.0,4.753e-05]
[1767528122826,0.08771846,91243.0,91239.0,4.753e-05]
[1767528123025,0.03291974,91243.0,91239.0,4.753e-05]
[1767528123255,0.02196,91243.0,91240.0,0.06576022]
[1767528123457,0.02196,91243.0,91240.0,0.0109601]
[1767528123635,0.02196,91243.0,91240.0,0.06576044]
[1767528124710,0.02196,91243.0,91241.0,0.0547999]
[1767528126070,0.02196,91243.0,91242.0,0.05479932]
[1767528127014,0.01095914,91248.0,91242.0,0.05479932]
[1767528127015,0.02196,91247.0,91245.0,0.04822328]
[1767528127312,0.02196,91249.0,91245.0,0.1139802]
[1767528127507,0.02196,91249.0,91245.0,0.10662984]
[1767528128098,0.02196,91249.0,91246.0,0.01095938]
[1767528128315,0.02196,91249.0,91245.0,0.10662984]
[1767528128847,0.02196,91249.0,91245.0,0.06575692]
[1767528129065,0.02196,91250.0,91247.0,0.05918254]
[1767528129431,0.06575274,91251.0,91247.0,0.05918254]
[1767528129609,0.0109589,91250.0,91245.0,0.11398024]
[1767528129814,0.0109589,91250.0,91246.0,0.01095938]
[1767528130131,0.000999,91246.0,91245.0,0.04822328]
[1767528130349,0.01095902,91249.0,91244.0,0.06575721]
[1767528131052,0.01135902,91285.0,91245.0,0.21919009]
[1767528131053,0.01095794,91258.0,91245.0,0.21919009]
[1767528131259,0.01095794,91258.0,91253.0,0.06575121]
[1767528131431,0.08770745,91259.0,91254.0,0.01095842]
[1767528131636,0.08770745,91259.0,91255.0,0.0109583]
[1767528131833,0.02196,91259.0,91255.0,0.0109583]
[1767528132040,0.03291782,91259.0,91254.0,0.06575028]
[1767528132256,0.02196,91259.0,91255.0,0.0109583]
[1767528132634,0.02196,91259.0,91255.0,0.06574965]
[1767528132836,0.03291782,91259.0,91255.0,0.0109583]
[1767528133055,0.03291782,91259.0,91255.0,0.0657498]
[1767528133260,0.02196,91259.0,91255.0,0.0109583]
[1767528133459,0.0877072,91259.0,91254.0,0.06575028]
[1767528134458,0.08770711,91259.0,91254.0,0.06575028]
[1767528134669,0.01095794,91258.0,91254.0,0.06575045]
[1767528134977,0.01095794,91258.0,91252.0,0.01095866]
[1767528134978,0.01,91254.0,91252.0,0.06575189]
[1767528135326,0.01,91254.0,91253.0,0.05479271]
[1767528135744,0.01,91254.0,91252.0,0.06575189]
[1767528135951,0.06574893,91257.0,91252.0,0.06575189]
[1767528136950,0.01095818,91256.0,91252.0,0.01095866]
[1767528137135,0.01095854,91253.0,91248.0,0.0657546]
[1767528137331,0.0109583,91255.0,91246.0,0.01095938]
[1767528137332,0.01,91252.0,91246.0,0.01095938]
[1767528137540,0.0109589,91250.0,91245.0,0.065757]
[1767528137778,0.06575386,91250.0,91245.0,0.065757]
[1767528138036,0.06575358,91250.0,91245.0,0.065757]
[1767528138239,0.06575362,91250.0,91245.0,0.065757]
[1767528138691,0.06575314,91251.0,91246.0,0.01095938]
[1767528138897,0.0109589,91250.0,91246.0,0.0657562]
[1767528139187,0.06575314,91251.0,91246.0,0.0657562]
[1767528139493,0.01095878,91251.0,91247.0,0.06575533]
[1767528139699,0.11133096,91252.0,91247.0,0.06571116]
[1767528140101,0.04557896,91252.0,91248.0,0.05479518]
[1767528140811,0.04457996,91252.0,91249.0,0.05479498]
[1767528141395,0.04457996,91252.0,91249.0,0.065754]
[1767528141818,0.06575055,91254.0,91250.0,0.06575338]
[1767528142137,0.06575055,91254.0,91249.0,0.065754]
[1767528142661,0.11132951,91254.0,91249.0,0.065754]
[1767528142941,0.06575128,91253.0,91248.0,0.01095914]
[1767528143143,0.05479336,91252.0,91248.0,0.01095914]
[1767528143322,0.06575128,91253.0,91248.0,0.06575478]
[1767528143849,0.01,91248.0,91244.0,0.01095962]
[1767528144146,0.01,91248.0,91246.0,0.01095938]
[1767528144350,0.06575316,91251.0,91247.0,0.01095926]
[1767528144563,0.01095878,91251.0,91247.0,0.06575553]
[1767528145433,0.06575317,91252.0,91248.0,0.01095914]
[1767528145635,0.11133026,91253.0,91248.0,0.06575451]
[1767528145837,0.01095866,91252.0,91248.0,0.06575451]
[1767528146055,0.0657531,91251.0,91246.0,0.06575624]
[1767528146254,0.0657531,91251.0,91247.0,0.06575544]
[1767528147022,0.0657531,91251.0,91247.0,0.01095926]
[1767528147295,0.0657531,91251.0,91247.0,0.06575556]
[1767528147604,0.06575295,91251.0,91247.0,0.01095926]
[1767528150059,0.06575295,91251.0,91247.0,0.0657555]
[1767528150678,0.01095902,91249.0,91244.0,0.06575738]
[1767528150879,0.000999,91247.0,91245.0,0.06575692]
[1767528151131,0.04890702,91249.0,91246.0,0.01095938]
[1767528151539,0.05986604,91249.0,91245.0,0.0109595]
[1767528151714,0.05986628,91247.0,91238.0,0.01096034]
[1767528151915,0.10370686,91242.0,91237.0,0.08772259]
[1767528152114,0.04890702,91242.0,91239.0,0.01100775]
[1767528152375,0.04890702,91242.0,91239.0,4.753e-05]
[1767528152705,0.11466635,91242.0,91239.0,4.753e-05]
[1767528153103,0.04890702,91242.0,91239.0,4.753e-05]
[1767528153301,0.11466631,91242.0,91239.0,4.753e-05]
[1767528154065,0.05986688,91242.0,91239.0,4.753e-05]
[1767528154210,0.04890702,91242.0,91239.0,4.753e-05]
[1767528154853,0.11466633,91242.0,91239.0,4.753e-05]
[1767528155052,0.04890702,91242.0,91239.0,0.06580882]
[1767528155250,0.114448,91244.0,91240.0,0.0109601]
[1767528156212,0.114448,91244.0,91240.0,0.06576049]
[1767528156350,0.114448,91244.0,91239.0,0.06580882]
[1767528157663,0.04869007,91244.0,91240.0,0.06576061]
[1767528157865,0.04869007,91244.0,91241.0,0.06575984]
[1767528158180,0.04869007,91244.0,91237.0,0.23016967]
[1767528158181,0.06576264,91238.0,91233.0,0.0657652]
[1767528158382,0.01096046,91237.0,91233.0,0.0657652]
[1767528158624,0.06576264,91238.0,91233.0,0.0657652]
[1767528159367,0.06576264,91238.0,91234.0,0.01096082]
[1767528159971,0.01096034,91238.0,91234.0,0.06576468]
[1767528160171,0.0657622,91238.0,91233.0,0.0657652]
[1767528160369,0.06571562,91238.0,91233.0,0.0657652]
[1767528160575,0.06566467,91238.0,91233.0,0.0657652]
[1767528161000,0.06566467,91238.0,91231.0,0.08772677]
[1767528161001,0.000999,91233.0,91232.0,0.06576621]
[1767528161232,0.06576321,91237.0,91233.0,0.0657656]
[1767528161436,0.06576386,91236.0,91231.0,0.03292118]
[1767528161573,0.05480375,91235.0,91231.0,0.03292118]
[1767528161974,0.06576445,91235.0,91231.0,0.02196]
[1767528162195,0.0109607,91235.0,91231.0,0.08772687]
[1767528163050,0.0109607,91235.0,91231.0,0.06576687]
[1767528163202,0.06576435,91235.0,91231.0,0.01096118]
[1767528163749,0.0109607,91235.0,91231.0,0.01096118]
[1767528163962,0.01096058,91236.0,91231.0,0.01096118]
[1767528164315,0.0109607,91235.0,91231.0,0.01096118]
[1767528165224,0.06576451,91235.0,91231.0,0.01096118]
[1767528165482,0.06576496,91234.0,91230.0,0.06576773]
[1767528165637,0.01096082,91234.0,91230.0,0.06576773]
[1767528166271,0.01096082,91234.0,91227.0,0.06576996]
[1767528166272,0.06576567,91233.0,91227.0,0.06576996]
[1767528166444,0.04869007,91226.0,91222.0,0.03292226]
[1767528166661,0.06577047,91228.0,91224.0,0.01096202]
[1767528166868,0.01096154,91228.0,91224.0,0.01096202]
[1767528167227,0.06576855,91229.0,91224.0,0.06577202]
[1767528167953,0.06576855,91229.0,91225.0,0.0109619]
[1767528168386,0.01096142,91229.0,91225.0,0.06577129]
[1767528169250,0.01096142,91229.0,91225.0,0.11118058]
[1767528169444,0.0657684,91230.0,91225.0,0.11118058]
[1767528169650,0.0657684,91230.0,91226.0,0.01096178]
[1767528170550,2.8e-07,91230.0,91227.0,0.01096166]
[1767528170747,0.06576576,91233.0,91230.0,0.00099872]
[1767528171253,0.06576576,91233.0,91229.0,0.01096142]
[1767528171471,0.06576645,91232.0,91228.0,0.01096154]
[1767528171704,0.01096106,91232.0,91228.0,0.06576909]
[1767528173632,0.06576576,91233.0,91228.0,0.06576909]
[1767528174337,0.06576646,91232.0,91228.0,0.01096154]
[1767528174633,0.01096106,91232.0,91228.0,0.0657692]
[1767528174832,0.01096106,91232.0,91228.0,0.01096154]
[1767528175043,0.06576652,91232.0,91228.0,0.01096154]
[1767528176039,0.06576652,91232.0,91227.0,0.0657694]
[1767528176459,0.05480469,91234.0,91232.0,0.000999]
[1767528176823,0.06576551,91234.0,91230.0,0.0109613]
[1767528177544,0.03292034,91238.0,91234.0,0.01]
[1767528177750,0.05480346,91236.0,91234.0,0.010999]
[1767528177947,0.05480352,91235.0,91234.0,0.01]
[1767528178116,0.06576528,91234.0,91229.0,0.11545103]
[1767528178319,0.06576528,91234.0,91230.0,0.0109613]
[1767528178541,0.01096082,91234.0,91230.0,0.06576762]
[1767528178740,0.06576422,91235.0,91230.0,0.06576762]
[1767528179683,0.0109607,91235.0,91231.0,0.01096118]
[1767528180163,0.0109607,91235.0,91230.0,0.06576762]
[1767528180376,0.06576428,91235.0,91231.0,0.06576703]
[1767528180810,0.06576351,91236.0,91231.0,0.06576703]
[1767528180979,0.06576454,91235.0,91231.0,0.01096118]
[1767528181412,0.05480456,91234.0,91228.0,0.06576913]
[1767528181636,0.05480507,91233.0,91228.0,0.06576913]
[1767528181863,0.05480456,91234.0,91229.0,0.06576817]
[1767528182085,0.0109607,91235.0,91229.0,0.06576817]
[1767528182086,0.0109607,91235.0,91230.0,0.0109613]
[1767528182293,0.06576407,91236.0,91232.0,0.11191202]
[1767528182587,0.06576435,91235.0,91232.0,0.04614592]
[1767528183089,0.05480418,91234.0,91232.0,0.04614592]
[1767528183498,0.06576435,91235.0,91232.0,0.04614592]
[1767528184029,0.05480437,91234.0,91232.0,0.04614592]
[1767528184234,0.06576567,91233.0,91230.0,0.04614592]
[1767528185991,0.06576406,91236.0,91233.0,0.000999]
[1767528186220,0.06576406,91236.0,91231.0,0.05480544]
[1767528186622,0.06576406,91236.0,91231.0,0.05476128]
[1767528187139,0.01096046,91237.0,91230.0,0.11191315]
[1767528187376,0.06576314,91237.0,91232.0,0.05480522]
[1767528187545,0.06576314,91237.0,91232.0,0.06576628]
[1767528188259,0.06576364,91236.0,91232.0,0.01096106]
[1767528189511,0.06576314,91237.0,91233.0,0.06576562]
[1767528189713,0.01096046,91237.0,91233.0,0.06576562]
[1767528190023,0.08772209,91238.0,91234.0,0.01096082]
[1767528190214,0.08772209,91238.0,91234.0,0.06576472]
[1767528190215,0.02196,91238.0,91234.0,0.06576472]
[1767528190641,0.08772219,91238.0,91234.0,0.06576472]
[1767528190838,0.08772219,91238.0,91232.0,0.05480524]
[1767528191761,0.08772219,91238.0,91233.0,0.0657651]
[1767528193209,0.01096046,91237.0,91233.0,0.0657651]
[1767528193972,0.01096046,91237.0,91228.0,0.2653768]
[1767528194126,0.01096046,91237.0,91233.0,0.05480471]
[1767528194331,0.02196,91238.0,91234.0,0.05480361]
[1767528194541,0.02196,91238.0,91235.0,0.06576421]
[1767528194969,0.02196,91238.0,91235.0,0.0109607]
[1767528195581,0.02196,91238.0,91234.0,0.05480369]
[1767528196149,0.03292034,91238.0,91234.0,0.01096082]
[1767528196348,0.02196,91238.0,91234.0,0.01096082]
[1767528196604,0.02196,91238.0,91235.0,0.06576403]
[1767528196805,0.01095926,91247.0,91242.0,0.01095986]
[1767528196962,0.07675701,91246.0,91241.0,0.06575942]
[1767528197166,0.02196,91246.0,91241.0,0.06575942]
[1767528197366,0.03291938,91246.0,91242.0,0.01095986]
[1767528198040,0.03291938,91246.0,91241.0,0.06575942]
[1767528198422,0.0606137,91251.0,91247.0,0.05479585]
[1767528198423,0.02196,91251.0,91247.0,0.05479585]
[1767528198622,0.01095854,91253.0,91247.0,0.01095926]
[1767528198922,0.01095854,91253.0,91248.0,0.01095914]
[1767528199119,0.06575135,91253.0,91248.0,0.01095914]
[1767528199324,0.08770991,91255.0,91250.0,0.0109589]
[1767528199501,0.02196,91255.0,91250.0,0.0109589]
[1767528200171,0.0329183,91255.0,91251.0,0.01095878]
[1767528200410,0.0329183,91255.0,91250.0,0.0657533]
[1767528200576,0.03296581,91255.0,91250.0,0.0657533]
[1767528201190,0.03296581,91255.0,91251.0,0.01095878]
[1767528201743,0.03296581,91255.0,91251.0,0.0571047]
[1767528202135,0.03296581,91255.0,91251.0,0.01095878]
[1767528207034,0.02100851,91255.0,91252.0,0.01095866]
[1767528207335,0.01100851,91255.0,91252.0,0.06575185]
[1767528207458,0.000152,91256.0,91255.0,0.05479151]
[1767528209017,0.06574287,91265.0,91260.0,0.0547885]
[1767528209223,0.06574287,91265.0,91259.0,0.01095782]
[1767528209224,0.000999,91260.0,91259.0,0.01095782]
[1767528209620,0.01095746,91262.0,91258.0,0.01095794]
[1767528209826,0.06574417,91263.0,91258.0,0.06574753]
[1767528210034,0.01095734,91263.0,91259.0,0.01095782]
[1767528210244,0.010999,91259.0,91256.0,0.01095818]
[1767528210415,0.010999,91259.0,91255.0,0.0109583]
[1767528210594,0.02195682,91259.0,91255.0,0.0109583]
[1767528210794,0.02095782,91259.0,91254.0,0.06574998]
[1767528211611,0.07574731,91259.0,91254.0,0.06574998]
[1767528212233,0.02095782,91259.0,91254.0,0.06575045]
[1767528212430,0.01,91259.0,91255.0,0.0109583]
[1767528212638,0.07574701,91259.0,91254.0,0.01095842]
[1767528214325,0.01095794,91258.0,91254.0,0.06575051]
[1767528214677,0.01095794,91258.0,91252.0,0.06575179]